bitfinex-derivatives/quotes_BTCF0:USTF0_20250919
["timestamp","ask_amount","ask_price","bid_price","bid_amount"]
[1758287240910,0.47599176,116200.0,116190.0,0.45697495]
[1758287241106,1.25791176,116200.0,116190.0,0.45697495]
[1758287241917,1.25787176,116200.0,116190.0,0.45697495]
[1758287242318,1.25783176,116200.0,116190.0,0.45697495]
[1758287242521,0.47599176,116200.0,116190.0,0.45697495]
[1758287242721,1.25779176,116200.0,116190.0,0.45697495]
[1758287244621,1.25779176,116200.0,116190.0,0.12105985]
[1758287244820,1.25779176,116200.0,116190.0,0.45697495]
[1758287245322,0.47599176,116200.0,116190.0,0.45697495]
[1758287245523,1.25791176,116200.0,116190.0,0.45697495]
[1758287247222,1.25791176,116200.0,116190.0,0.12105985]
[1758287247418,1.25791176,116200.0,116190.0,0.45697495]
[1758287247922,1.25791176,116200.0,116190.0,0.09968985]
[1758287248124,1.5763695,116200.0,116190.0,0.09968985]
[1758287248325,1.5763695,116200.0,116190.0,0.45891495]
[1758287249622,1.2404544,116200.0,116190.0,0.45891495]
[1758287254133,0.4585344,116200.0,116190.0,0.45891495]
[1758287254435,1.2400544,116200.0,116190.0,0.45891495]
[1758287255535,1.2399744,116200.0,116190.0,0.45891495]
[1758287257342,1.2399744,116200.0,116190.0,0.12299985]
[1758287257543,1.2399744,116200.0,116190.0,0.45891495]
[1758287257840,1.5758895,116200.0,116190.0,0.12299985]
[1758287258040,1.5758895,116200.0,116190.0,0.09968985]
[1758287261148,1.5758895,116200.0,116190.0,0.12299985]
[1758287262950,1.5755295,116200.0,116190.0,0.12299985]
[1758287265750,0.7944495,116200.0,116190.0,0.12299985]
[1758287265950,1.5754895,116200.0,116190.0,0.12299985]
[1758287266151,1.5754895,116200.0,116190.0,0.45891495]
[1758287266846,1.5754895,116200.0,116190.0,0.12299985]
[1758287267050,1.5754895,116200.0,116190.0,0.45891495]
[1758287268357,0.7944495,116200.0,116190.0,0.45891495]
[1758287268557,1.5754895,116200.0,116190.0,0.45891495]
[1758287269258,0.7944495,116200.0,116190.0,0.45891495]
[1758287269758,1.5754895,116200.0,116190.0,0.45891495]
[1758287269953,0.7944495,116200.0,116190.0,0.45891495]
[1758287270252,1.5754895,116200.0,116190.0,0.45891495]
[1758287271146,1.5754895,116200.0,116190.0,0.12299985]
[1758287271348,1.5754895,116200.0,116190.0,0.45891495]
[1758287274660,1.5754895,116200.0,116190.0,0.12299985]
[1758287274956,1.5754895,116200.0,116190.0,0.45891495]
[1758287275653,1.5754895,116200.0,116190.0,0.12299985]
[1758287275852,1.5754895,116200.0,116190.0,0.45891495]
[1758287277660,1.2395744,116200.0,116190.0,0.45891495]
[1758287279755,0.1097193,116200.0,116190.0,1.14418655]
[1758287279955,0.8680593,116200.0,116190.0,1.14418655]
[1758287280157,0.0870193,116200.0,116190.0,1.14418655]
[1758287280464,0.8680593,116200.0,116190.0,1.14418655]
[1758287281659,0.0870193,116200.0,116190.0,1.14418655]
[1758287281956,0.8680593,116200.0,116190.0,1.14418655]
[1758287283759,0.8892893,116200.0,116190.0,0.80827145]
[1758287283961,0.8892893,116200.0,116190.0,1.14418655]
[1758287284860,0.1082493,116200.0,116190.0,1.14418655]
[1758287285066,0.8892493,116200.0,116190.0,1.14418655]
[1758287285767,0.8892493,116200.0,116190.0,0.80832392]
[1758287287066,0.1082493,116200.0,116190.0,0.80832392]
[1758287287269,0.8892493,116200.0,116190.0,0.80832392]
[1758287287468,0.8902493,116200.0,116190.0,0.80832392]
[1758287287668,0.8902493,116200.0,116190.0,0.80532392]
[1758287287967,0.8912493,116200.0,116190.0,0.80532392]
[1758287288366,0.8912493,116200.0,116190.0,1.14129149]
[1758287289872,0.8912493,116200.0,116190.0,0.80532392]
[1758287291060,0.8912493,116200.0,116190.0,1.14129149]
[1758287295785,0.1102493,116200.0,116190.0,1.14129149]
[1758287295987,0.8911693,116200.0,116190.0,1.14129149]
[1758287296682,0.1102493,116200.0,116190.0,1.14129149]
[1758287296877,0.003,116200.0,116190.0,2.08741149]
[1758287297587,0.0860046,116220.0,116210.0,0.0860117]
[1758287297882,0.4409646,116220.0,116210.0,0.1208617]
[1758287298078,0.4409646,116220.0,116210.0,0.45682927]
[1758287298786,0.4631946,116220.0,116210.0,0.47796916]
[1758287298982,0.4631946,116220.0,116210.0,0.48696916]
[1758287299784,0.4641946,116220.0,116210.0,0.48596916]
[1758287300584,0.4641946,116220.0,116210.0,0.47696916]
[1758287301485,0.4641946,116220.0,116210.0,0.4766972]
[1758287303087,0.1092346,116220.0,116210.0,0.4766972]
[1758287305188,0.1092346,116220.0,116210.0,0.3906855]
[1758287307087,0.70917217,116220.0,116210.0,0.04138793]
[1758287307289,0.7268666,116220.0,116210.0,0.04138793]
[1758287308592,0.39089903,116220.0,116210.0,0.04138793]
[1758287308793,0.7268666,116220.0,116210.0,0.04138793]
[1758287308993,0.39089903,116220.0,116210.0,0.04138793]
[1758287309494,0.7268666,116220.0,116210.0,0.04138793]
[1758287310888,1.5076266,116220.0,116210.0,0.04138793]
[1758287311094,1.17165903,116220.0,116210.0,0.3773555]
[1758287311490,0.39089903,116220.0,116210.0,0.3773555]
[1758287311795,1.17165903,116220.0,116210.0,0.3773555]
[1758287314397,0.39089903,116220.0,116210.0,0.3773555]
[1758287314588,1.17165903,116220.0,116210.0,0.3773555]
[1758287318194,1.17165903,116220.0,116210.0,0.01986793]
[1758287318195,1.2576266,116220.0,116210.0,0.01986793]
[1758287319098,1.2575866,116220.0,116210.0,0.04297793]
[1758287319695,1.2575866,116220.0,116210.0,0.01986793]
[1758287319891,0.92161903,116220.0,116210.0,0.01986793]
[1758287320197,1.2575866,116220.0,116210.0,0.01986793]
[1758287322398,1.23989217,116220.0,116210.0,0.01986793]
[1758287327004,0.1223617,116210.0,116200.0,0.02321]
[1758287327204,0.47594922,116210.0,116200.0,0.02311]
[1758287327904,0.48472116,116210.0,116200.0,0.02311]
[1758287328298,0.48572116,116210.0,116200.0,0.02711]
[1758287328907,0.46810121,116210.0,116200.0,0.04721702]
[1758287329200,0.48549485,116210.0,116200.0,0.04721702]
[1758287329406,1.25744291,116210.0,116200.0,0.04721702]
[1758287329706,0.92147534,116210.0,116200.0,0.04721702]
[1758287330607,0.93008891,116210.0,116200.0,0.04721702]
[1758287331699,0.91269527,116210.0,116200.0,0.04733915]
[1758287332306,1.24866284,116210.0,116200.0,0.04733915]
[1758287332506,1.24866284,116210.0,116200.0,0.04746115]
[1758287334910,0.45932927,116210.0,116200.0,0.04746115]
[1758287335204,1.24004927,116210.0,116200.0,0.04685521]
[1758287337211,0.45932927,116210.0,116200.0,0.04685521]
[1758287337413,0.9040817,116210.0,116200.0,0.04685521]
[1758287337713,0.45932927,116210.0,116200.0,0.04685521]
[1758287337911,1.24004927,116210.0,116200.0,0.04685521]
[1758287338313,0.9040817,116210.0,116200.0,0.04685521]
[1758287339707,0.9040817,116210.0,116200.0,0.38282278]
[1758287340308,0.9040817,116210.0,116200.0,0.04685521]
[1758287340909,0.9040817,116210.0,116200.0,0.04688538]
[1758287341518,1.24004927,116210.0,116200.0,0.04688538]
[1758287344221,0.9040817,116210.0,116200.0,0.04688538]
[1758287344423,0.9040817,116210.0,116200.0,0.38330375]
[1758287344721,0.9040817,116210.0,116200.0,0.04733618]
[1758287345225,0.92153658,116210.0,116200.0,0.04733618]
[1758287345522,1.25750415,116210.0,116200.0,0.04733618]
[1758287345711,1.25753775,116210.0,116200.0,0.38333735]
[1758287346810,0.92153658,116210.0,116200.0,0.38333735]
[1758287347014,1.25753775,116210.0,116200.0,0.38333735]
[1758287347220,1.25749775,116210.0,116200.0,0.38333735]
[1758287349220,0.47681775,116210.0,116200.0,0.38333735]
[1758287349522,1.25749775,116210.0,116200.0,0.38333735]
[1758287349722,1.25745775,116210.0,116200.0,0.38333735]
[1758287351112,1.25745775,116210.0,116200.0,0.04733618]
[1758287351315,1.25745775,116210.0,116200.0,0.38333735]
[1758287354425,0.47681775,116210.0,116200.0,0.38333735]
[1758287354629,1.25745775,116210.0,116200.0,0.38333735]
[1758287355833,0.47681775,116210.0,116200.0,0.38333735]
[1758287356027,1.25741775,116210.0,116200.0,0.38333735]
[1758287356828,1.25741775,116210.0,116200.0,0.71933852]
[1758287357028,0.47681775,116210.0,116200.0,0.71933852]
[1758287357230,1.25741775,116210.0,116200.0,0.71933852]
[1758287357631,0.47681775,116210.0,116200.0,0.71933852]
[1758287357931,1.25741775,116210.0,116200.0,0.71933852]
[1758287358230,0.14081658,116210.0,116200.0,0.71933852]
[1758287358431,1.25741775,116210.0,116200.0,0.71933852]
[1758287358627,0.14081658,116210.0,116200.0,0.73218852]
[1758287358931,0.90779658,116210.0,116200.0,0.73218852]
[1758287360027,1.24379775,116210.0,116200.0,0.73218852]
[1758287360833,0.90779658,116210.0,116200.0,0.73218852]
[1758287361035,1.24379775,116210.0,116200.0,0.73218852]
[1758287361726,1.24379775,116210.0,116200.0,0.06018618]
[1758287361934,1.25741775,116210.0,116200.0,0.04733618]
[1758287362126,1.25741775,116210.0,116200.0,0.38333735]
[1758287362534,1.25741775,116210.0,116200.0,0.04733618]
[1758287362736,1.25741775,116210.0,116200.0,0.71933852]
[1758287363736,1.25741775,116210.0,116200.0,0.04733618]
[1758287363924,1.25741775,116210.0,116200.0,0.71933852]
[1758287364232,0.1217492,116200.0,116190.0,0.19193983]
[1758287364434,0.1220766,116190.0,116180.0,0.15458485]
[1758287364628,1.23863777,116190.0,116180.0,3e-08]
[1758287364829,1.23863777,116190.0,116180.0,0.3360012]
[1758287365831,1.23863777,116190.0,116180.0,3e-08]
[1758287367336,1.24063777,116190.0,116180.0,3e-08]
[1758287367837,1.24263777,116190.0,116180.0,0.06878984]
[1758287368131,1.24263777,116190.0,116180.0,3e-08]
[1758287368337,1.24263777,116190.0,116180.0,0.3360012]
[1758287368733,1.2513909,116190.0,116180.0,0.3360012]
[1758287368934,1.2513909,116190.0,116180.0,3e-08]
[1758287370328,1.24263777,116190.0,116180.0,3e-08]
[1758287370632,1.24263777,116190.0,116180.0,0.02179003]
[1758287370832,1.24263777,116190.0,116180.0,0.3577912]
[1758287372634,1.24263777,116190.0,116180.0,0.42766155]
[1758287372836,1.24263777,116190.0,116180.0,0.09166038]
[1758287373143,1.24263777,116190.0,116180.0,0.40587155]
[1758287373442,1.24263777,116190.0,116180.0,0.42766155]
[1758287374046,0.1260766,116190.0,116180.0,0.42766155]
[1758287374247,1.24267777,116190.0,116180.0,0.42766155]
[1758287376046,1.24267777,116190.0,116180.0,0.09166038]
[1758287376244,1.24267777,116190.0,116180.0,0.42766155]
[1758287378841,1.24267777,116190.0,116180.0,0.06987038]
[1758287379044,1.24267777,116190.0,116180.0,0.40587155]
[1758287380155,1.24067777,116190.0,116180.0,0.40587155]
[1758287380448,1.24067777,116190.0,116180.0,0.43166155]
[1758287380744,0.1240766,116190.0,116180.0,0.43166155]
[1758287381052,1.23967777,116190.0,116180.0,0.76766272]
[1758287381349,1.23967777,116190.0,116180.0,0.43166155]
[1758287382645,0.1096866,116190.0,116180.0,0.78155272]
[1758287382956,0.8915666,116190.0,116180.0,0.78155272]
[1758287383248,0.8915666,116190.0,116180.0,0.10955038]
[1758287383443,0.8915666,116190.0,116180.0,0.78155272]
[1758287383842,0.1096866,116190.0,116180.0,0.78155272]
[1758287384050,0.8914866,116190.0,116180.0,0.78155272]
[1758287384348,0.8914866,116190.0,116180.0,0.78155269]
[1758287384551,0.1096866,116190.0,116180.0,0.78155269]
[1758287384751,0.8914866,116190.0,116180.0,0.78155269]
[1758287385752,0.8914466,116190.0,116180.0,0.78155269]
[1758287386148,0.1096866,116190.0,116180.0,0.78155269]
[1758287386349,0.8913666,116190.0,116180.0,0.78155269]
[1758287386647,0.1096866,116190.0,116180.0,0.78155269]
[1758287386845,0.8915266,116190.0,116180.0,0.78155269]
[1758287387455,0.8915266,116190.0,116180.0,0.10955035]
[1758287387654,0.8915266,116190.0,116180.0,0.78155269]
[1758287387847,0.8915266,116190.0,116180.0,0.10955035]
[1758287388048,0.8915266,116190.0,116180.0,0.78155269]
[1758287389055,1.22752777,116190.0,116180.0,0.78155269]
[1758287389241,0.8915266,116190.0,116180.0,0.78155269]
[1758287389445,1.22752777,116190.0,116180.0,0.78155269]
[1758287390056,0.8915266,116190.0,116180.0,0.78155269]
[1758287390245,1.22752777,116190.0,116180.0,0.78155269]
[1758287390853,0.8915266,116190.0,116180.0,0.78155269]
[1758287391054,1.22752777,116190.0,116180.0,0.78155269]
[1758287393160,0.8915266,116190.0,116180.0,0.78155269]
[1758287393360,1.22752777,116190.0,116180.0,0.78155269]
[1758287398158,1.22752777,116190.0,116180.0,0.10955035]
[1758287398363,1.22752777,116190.0,116180.0,0.78155269]
[1758287399060,1.24057777,116190.0,116180.0,0.09566035]
[1758287399250,1.24057777,116190.0,116180.0,0.43166152]
[1758287400961,1.24057777,116190.0,116180.0,0.07387035]
[1758287401259,1.24057777,116190.0,116180.0,0.40987152]
[1758287401662,1.24057777,116190.0,116180.0,0.43273152]
[1758287403353,1.24057777,116190.0,116180.0,0.07387035]
[1758287403354,1.82657894,116190.0,116180.0,0.07387035]
[1758287403754,1.49057777,116190.0,116180.0,0.07387035]
[1758287405254,1.82657894,116190.0,116180.0,0.07387035]
[1758287406164,1.49057777,116190.0,116180.0,0.07387035]
[1758287407361,1.49057777,116190.0,116180.0,0.004]
[1758287407362,1.04473894,116190.0,116180.0,0.004]
[1758287407567,1.82565894,116190.0,116180.0,0.004]
[1758287407767,1.8260331,116190.0,116180.0,0.004]
[1758287407966,1.0451131,116190.0,116180.0,0.004]
[1758287408164,1.8259931,116190.0,116180.0,0.004]
[1758287408870,1.48980485,116190.0,116180.0,0.004]
[1758287409368,0.70892485,116190.0,116180.0,0.004]
[1758287409563,1.48972485,116190.0,116180.0,0.004]
[1758287411372,0.70892485,116190.0,116180.0,0.004]
[1758287411763,1.48964485,116190.0,116180.0,0.004]
[1758287412464,0.70892485,116190.0,116180.0,0.004]
[1758287412664,1.48964485,116190.0,116180.0,0.004]
[1758287412968,1.8258331,116190.0,116180.0,0.004]
[1758287413369,1.0451131,116190.0,116180.0,0.004]
[1758287413570,1.8258331,116190.0,116180.0,0.004]
[1758287415066,1.0451131,116190.0,116180.0,0.004]
[1758287415365,1.06268377,116190.0,116180.0,0.004]
[1758287415571,1.84340377,116190.0,116180.0,0.004]
[1758287417173,0.39030727,116190.0,116180.0,0.004]
[1758287417374,1.25721552,116190.0,116180.0,0.02686]
[1758287417877,0.47649552,116190.0,116180.0,0.004]
[1758287418075,1.25721552,116190.0,116180.0,0.004]
[1758287418276,1.25741552,116190.0,116180.0,0.02686]
[1758287418972,1.25732144,116190.0,116180.0,0.02686]
[1758287421479,0.92113319,116190.0,116180.0,0.02686]
[1758287421781,1.25732144,116190.0,116180.0,0.02686]
[1758287421980,1.25720144,116190.0,116180.0,0.02686]
[1758287422779,0.47640144,116190.0,116180.0,0.02686]
[1758287422975,1.25712144,116190.0,116180.0,0.02686]
[1758287430182,1.25712144,116190.0,116180.0,0.004]
[1758287431682,0.47640144,116190.0,116180.0,0.004]
[1758287431887,1.25712144,116190.0,116180.0,0.004]
[1758287432187,1.25712144,116190.0,116180.0,0.02664]
[1758287432789,1.25712144,116190.0,116180.0,0.004]
[1758287433588,1.25712144,116190.0,116180.0,0.02664]
[1758287434384,0.47640144,116190.0,116180.0,0.02664]
[1758287434584,1.25712144,116190.0,116180.0,0.02664]
[1758287438085,0.47640144,116190.0,116180.0,0.02664]
[1758287438395,1.25712144,116190.0,116180.0,0.02664]
[1758287442793,0.47640144,116190.0,116180.0,0.02664]
[1758287442993,1.23960485,116190.0,116180.0,0.02664]
[1758287443193,1.25676738,116190.0,116180.0,0.02664]
[1758287444998,0.92057913,116190.0,116180.0,0.02664]
[1758287445297,1.25676738,116190.0,116180.0,0.02664]
[1758287446695,1.25709055,116190.0,116180.0,0.02664]
[1758287447097,0.9209023,116190.0,116180.0,0.02664]
[1758287447296,1.25709055,116190.0,116180.0,0.02664]
[1758287449294,0.45892485,116190.0,116180.0,0.04024]
[1758287449599,1.22655485,116190.0,116180.0,0.37642825]
[1758287451198,1.22655485,116190.0,116180.0,0.04024]
[1758287456411,0.44587485,116190.0,116180.0,0.37642825]
[1758287456595,1.22651485,116190.0,116180.0,0.37642825]
[1758287460308,1.22651485,116190.0,116180.0,0.04024]
[1758287464425,1.24043485,116190.0,116180.0,0.02664]
[1758287465915,0.9042466,116190.0,116180.0,0.02664]
[1758287466115,1.24043485,116190.0,116180.0,0.02664]
[1758287467225,1.24039485,116190.0,116180.0,0.02664]
[1758287467729,0.1096866,116190.0,116180.0,0.71164235]
[1758287467911,0.8902866,116190.0,116180.0,0.71164235]
[1758287469729,0.8902866,116190.0,116180.0,1.04752214]
[1758287471526,0.88757252,116190.0,116180.0,1.04752214]
[1758287471827,0.10697252,116190.0,116180.0,1.04752214]
[1758287472128,0.88753252,116190.0,116180.0,1.04752214]
[1758287476430,0.88753252,116190.0,116180.0,1.15583319]
[1758287476834,0.88753252,116190.0,116180.0,1.04752214]
[1758287477330,0.88753252,116190.0,116180.0,1.15583319]
[1758287478128,0.88753252,116190.0,116180.0,0.48376515]
[1758287478335,0.08431252,116190.0,116180.0,0.90583319]
[1758287479448,0.08431252,116190.0,116180.0,1.15583319]
[1758287482829,0.08431252,116190.0,116180.0,1.04752214]
[1758287485042,0.08431252,116190.0,116180.0,1.15579761]
[1758287485941,0.08431252,116190.0,116180.0,1.15821782]
[1758287487838,0.001,116190.0,116180.0,1.49425184]
[1758287488040,0.001,116190.0,116180.0,2.27469184]
[1758287488237,0.001,116190.0,116180.0,2.16641637]
[1758287489045,0.001,116190.0,116180.0,2.27468439]
[1758287489545,0.001,116190.0,116180.0,2.16641637]
[1758287490643,0.001,116190.0,116180.0,3.66641637]
[1758287491947,0.001,116190.0,116180.0,3.68683558]
[1758287492845,0.001,116190.0,116180.0,3.94953558]
[1758287493445,0.001,116190.0,116180.0,4.1041204]
[1758287495548,0.001,116190.0,116180.0,4.10347054]
[1758287496242,0.001,116190.0,116180.0,4.10399776]
[1758287496943,0.001,116190.0,116180.0,4.10402552]
[1758287497648,0.001,116190.0,116180.0,3.94941294]
[1758287499048,0.001,116190.0,116180.0,4.10401537]
[1758287499349,0.001,116190.0,116180.0,3.85401537]
[1758287499749,0.001,116190.0,116180.0,3.85369174]
[1758287500348,0.001,116190.0,116180.0,3.07325174]
[1758287501451,0.001,116190.0,116180.0,3.85353174]
[1758287501952,0.001,116190.0,116180.0,3.85343623]
[1758287503045,0.001,116190.0,116180.0,3.59073623]
[1758287503853,0.001,116190.0,116180.0,3.4361338]
[1758287505055,0.001,116190.0,116180.0,3.63655929]
[1758287505458,0.001,116190.0,116180.0,3.63701138]
[1758287505654,0.0860117,116210.0,116200.0,0.1210393]
[1758287505955,0.0860117,116210.0,116200.0,1.59609707]
[1758287506160,0.1090117,116210.0,116200.0,0.81585707]
[1758287506760,0.1100117,116210.0,116200.0,2.31685707]
[1758287506959,0.1100117,116210.0,116200.0,2.31785707]
[1758287507665,0.1150117,116210.0,116200.0,2.31685707]
[1758287508054,0.0920117,116210.0,116200.0,2.31685707]
[1758287508560,0.0930117,116210.0,116200.0,2.31685707]
[1758287508860,0.0930117,116210.0,116200.0,3.09709707]
[1758287513862,0.0930117,116210.0,116200.0,2.31685707]
[1758287514052,0.0930117,116210.0,116200.0,3.09701707]
[1758287518265,0.0930117,116210.0,116200.0,1.64478903]
[1758287518456,0.0930117,116210.0,116200.0,3.09697707]
[1758287518758,0.0930117,116210.0,116200.0,2.42490903]
[1758287518955,0.0930117,116210.0,116200.0,2.31685707]
[1758287519161,0.0930117,116210.0,116200.0,3.09697707]
[1758287520062,0.0930117,116210.0,116200.0,3.09699541]
[1758287521362,0.0930117,116210.0,116200.0,3.07666589]
[1758287521663,0.0930117,116210.0,116200.0,3.09689503]
[1758287521854,0.007,116210.0,116200.0,3.09689503]
[1758287525059,0.007,116210.0,116200.0,3.07666589]
[1758287527663,0.007,116210.0,116200.0,3.09673156]
[1758287529767,0.007,116210.0,116200.0,2.76054762]
[1758287531667,0.007,116210.0,116200.0,2.42466352]
[1758287531966,0.007,116210.0,116200.0,2.76054762]
[1758287534159,0.007,116210.0,116200.0,2.42466352]
[1758287534359,0.007,116210.0,116200.0,2.76054762]
[1758287535565,0.007,116210.0,116200.0,3.02324762]
[1758287535869,0.007,116210.0,116200.0,2.76050762]
[1758287536460,0.007,116210.0,116200.0,2.16078744]
[1758287536663,0.007,116210.0,116200.0,2.96108775]
[1758287537070,0.007,116210.0,116200.0,3.11590993]
[1758287537770,0.007,116210.0,116200.0,2.91548444]
[1758287540370,0.007,116210.0,116200.0,2.89526413]
[1758287540672,0.007,116210.0,116200.0,2.9155185]
[1758287541069,0.007,116210.0,116200.0,2.9154785]
[1758287541871,0.007,116210.0,116200.0,2.1354385]
[1758287542072,0.007,116210.0,116200.0,2.9154785]
[1758287542263,0.007,116210.0,116200.0,2.1354385]
[1758287542470,0.007,116210.0,116200.0,2.9154785]
[1758287542667,0.007,116210.0,116200.0,2.1354385]
[1758287542867,0.0930118,116210.0,116200.0,1.98061632]
[1758287543073,0.007,116210.0,116200.0,2.91538443]
[1758287543675,0.007,116210.0,116200.0,2.13534443]
[1758287543876,0.007,116210.0,116200.0,2.91538443]
[1758287544074,0.007,116210.0,116200.0,2.13534443]
[1758287544274,0.007,116210.0,116200.0,2.91538443]
[1758287544574,0.007,116210.0,116200.0,2.13534443]
[1758287544780,0.007,116210.0,116200.0,2.91538443]
[1758287545374,0.007,116210.0,116200.0,2.76065632]
[1758287545876,0.007,116210.0,116200.0,1.98061632]
[1758287546374,0.007,116210.0,116200.0,2.76061632]
[1758287547869,0.007,116210.0,116200.0,1.98061632]
[1758287548069,0.007,116210.0,116200.0,2.76061632]
[1758287550775,0.007,116210.0,116200.0,3.02331632]
[1758287551076,0.007,116210.0,116200.0,3.17804672]
[1758287553579,0.007,116210.0,116200.0,3.02331632]
[1758287559689,0.007,116210.0,116200.0,3.17809923]
[1758287560784,0.007,116210.0,116200.0,3.02331632]
[1758287562700,0.007,116210.0,116200.0,3.17811999]
[1758287567597,0.007,116210.0,116200.0,3.02331632]
[1758287572010,0.007,116210.0,116200.0,3.02270403]
[1758287575401,0.007,116210.0,116200.0,3.02315265]
[1758287576107,0.007,116210.0,116200.0,2.24315265]
[1758287576406,0.007,116210.0,116200.0,3.02303265]
[1758287577119,0.007,116210.0,116200.0,2.24315265]
[1758287577303,0.007,116210.0,116200.0,3.02303265]
[1758287577912,0.007,116210.0,116200.0,3.17783632]
[1758287578113,0.007,116210.0,116200.0,2.39795632]
[1758287578309,0.007,116210.0,116200.0,3.17783632]
[1758287580512,0.007,116210.0,116200.0,2.84195222]
[1758287580814,0.007,116210.0,116200.0,3.17783632]
[1758287583706,0.007,116210.0,116200.0,3.02303265]
[1758287586120,0.007,116210.0,116200.0,2.84195222]
[1758287586318,0.007,116210.0,116200.0,3.17783632]
[1758287589224,0.007,116210.0,116200.0,3.02303265]
[1758287589818,0.007,116210.0,116200.0,3.35886877]
[1758287591023,0.007,116210.0,116200.0,3.51375866]
[1758287591525,0.007,116210.0,116200.0,2.73387866]
[1758287591726,0.007,116210.0,116200.0,3.35878877]
[1758287591925,0.00653331,116210.0,116200.0,3.35878877]
[1758287593325,0.67840512,116210.0,116200.0,1.82124925]
[1758287593526,0.69107512,116210.0,116200.0,2.15710936]
[1758287593728,0.69107512,116210.0,116200.0,2.49296947]
[1758287594124,0.69107512,116210.0,116200.0,2.15710936]
[1758287594326,0.69107512,116210.0,116200.0,2.49296947]
[1758287594526,0.69107512,116210.0,116200.0,2.15710936]
[1758287594727,0.69107512,116210.0,116200.0,2.49296947]
[1758287597626,0.69107512,116210.0,116200.0,1.82124925]
[1758287597824,0.69107512,116210.0,116200.0,0.32124925]
[1758287598024,0.37797501,116210.0,116200.0,0.04490925]
[1758287598229,0.71383512,116210.0,116200.0,0.38076936]
[1758287598832,0.71383512,116210.0,116200.0,0.71662947]
[1758287599228,0.71383512,116210.0,116200.0,0.38076936]
[1758287600236,0.71383512,116210.0,116200.0,0.71662947]
[1758287600634,1.49363512,116210.0,116200.0,0.71662947]
[1758287600838,1.49363512,116210.0,116200.0,0.04490925]
[1758287601034,1.49363512,116210.0,116200.0,0.71662947]
[1758287608555,0.71383512,116210.0,116200.0,0.71662947]
[1758287608747,1.49363512,116210.0,116200.0,0.71662947]
[1758287611847,1.49363512,116210.0,116200.0,0.04490925]
[1758287612052,1.49363512,116210.0,116200.0,0.71662947]
[1758287615962,0.37797501,116210.0,116200.0,0.71662947]
[1758287616261,1.49359512,116210.0,116200.0,0.71662947]
[1758287616460,1.49359512,116210.0,116200.0,0.80264867]
[1758287616765,0.71383512,116210.0,116200.0,0.80264867]
[1758287617062,1.49359512,116210.0,116200.0,0.80264867]
[1758287617861,0.71383512,116210.0,116200.0,0.80264867]
[1758287618262,1.49359512,116210.0,116200.0,0.80264867]
[1758287619367,1.24359512,116210.0,116200.0,0.80264867]
[1758287620260,0.46383512,116210.0,116200.0,0.80264867]
[1758287620463,0.12797501,116210.0,116200.0,0.81540867]
[1758287620855,1.00275512,116210.0,116200.0,0.81540867]
[1758287621059,0.46383512,116210.0,116200.0,0.81540867]
[1758287621264,1.24355512,116210.0,116200.0,0.81540867]
[1758287621563,1.24355512,116210.0,116200.0,0.97029856]
[1758287621759,0.46383512,116210.0,116200.0,0.97029856]
[1758287622067,1.24355512,116210.0,116200.0,0.97009969]
[1758287625461,1.24355512,116210.0,116200.0,0.81538719]
[1758287626565,0.46383512,116210.0,116200.0,0.81538719]
[1758287626767,1.24355512,116210.0,116200.0,0.81538719]
[1758287629169,1.24355512,116210.0,116200.0,0.14366697]
[1758287629370,1.24355512,116210.0,116200.0,0.81538719]
[1758287635072,0.12797501,116210.0,116200.0,0.81538719]
[1758287635268,1.24347512,116210.0,116200.0,0.81538719]
[1758287635574,1.23080512,116210.0,116200.0,0.81538719]
[1758287641067,1.23080512,116210.0,116200.0,0.14366697]
[1758287641270,1.23080512,116210.0,116200.0,0.81538719]
[1758287641469,1.23080512,116210.0,116200.0,0.81551996]
[1758287642178,0.89494501,116210.0,116200.0,0.81551996]
[1758287642370,1.23080512,116210.0,116200.0,0.81551996]
[1758287644076,1.23080512,116210.0,116200.0,0.97040985]
[1758287644273,0.89494501,116210.0,116200.0,0.97040985]
[1758287644474,1.23080512,116210.0,116200.0,0.97040985]
[1758287644975,1.23072512,116210.0,116200.0,0.97062422]
[1758287648277,0.89486501,116210.0,116200.0,0.97062422]
[1758287648476,1.23072512,116210.0,116200.0,0.97062422]
[1758287651268,1.23072512,116210.0,116200.0,0.81573433]
[1758287651782,0.89486501,116210.0,116200.0,0.47996332]
[1758287652681,0.80885331,116210.0,116200.0,0.47996332]
[1758287654376,0.80885331,116210.0,116200.0,0.14401411]
[1758287654572,0.80885331,116210.0,116200.0,0.47996332]
[1758287666189,0.80885331,116210.0,116200.0,0.4799602]
[1758287667993,0.80885331,116210.0,116200.0,0.14401099]
[1758287668182,0.80885331,116210.0,116200.0,0.4799602]
[1758287669486,0.80885331,116210.0,116200.0,0.47980731]
[1758287669685,0.80885331,116210.0,116200.0,0.47978161]
[1758287671293,0.02929331,116210.0,116200.0,0.45954696]
[1758287671493,0.80865331,116210.0,116200.0,0.61443685]
[1758287672193,0.80865331,116210.0,116200.0,0.63486823]
[1758287672793,0.80865331,116210.0,116200.0,0.29891902]
[1758287672989,0.80865331,116210.0,116200.0,0.63486823]
[1758287673199,0.80865331,116210.0,116200.0,0.29819895]
[1758287673494,0.80865331,116210.0,116200.0,0.63414816]
[1758287673883,0.80865331,116210.0,116200.0,0.29819895]
[1758287674088,0.80865331,116210.0,116200.0,0.63414816]
[1758287674590,0.9123992,116210.0,116200.0,0.19941975]
[1758287674795,1.51163841,116210.0,116200.0,0.15832844]
[1758287675088,1.51102283,116210.0,116200.0,0.15832844]
[1758287675594,1.51102283,116210.0,116200.0,0.00343855]
[1758287678998,0.73166283,116210.0,116200.0,0.00343855]
[1758287679198,1.51102283,116210.0,116200.0,0.00343855]
[1758287679390,1.26102283,116210.0,116200.0,0.00343855]
[1758287686708,0.14571362,116210.0,116200.0,0.00343855]
[1758287686894,1.26098283,116210.0,116200.0,0.00343855]
[1758287699613,1.26153296,116210.0,116200.0,0.00343855]
[1758287703212,1.26148174,116210.0,116200.0,0.00343855]
[1758287705533,1.51148174,116210.0,116200.0,0.00343855]
[1758287705733,0.1206993,116200.0,116190.0,0.0001]
[1758287706033,0.1207067,116190.0,116180.0,0.1278563]
[1758287706230,0.1207067,116190.0,116180.0,0.0417222]
[1758287707026,0.1207067,116190.0,116180.0,0.37767141]
[1758287707225,0.8999067,116190.0,116180.0,0.46370551]
[1758287707631,0.8999067,116190.0,116180.0,0.37767141]
[1758287707838,0.1207067,116190.0,116180.0,0.37767141]
[1758287708126,0.8999467,116190.0,116180.0,0.37767141]
[1758287708932,0.9009467,116190.0,116180.0,0.37767141]
[1758287709230,0.9009467,116190.0,116180.0,0.0417222]
[1758287709534,0.9009467,116190.0,116180.0,0.0467222]
[1758287711127,0.1217067,116190.0,116180.0,0.1327562]
[1758287711326,0.1084166,116190.0,116180.0,0.73161541]